[Event "RUS-ch Blitz 2021"]
[Site "Sochi"]
[Date "2021.10.11"]
[Round "6.15"]
[White "Lobanov, Sergei"]
[Black "Lysyj, Igor"]
[Result "1/2-1/2"]
[ECO "C84"]
[WhiteElo "2501"]
[BlackElo "2603"]
[Annotator "ChessBase"]
[PlyCount "106"]
[EventDate "2021.10.11"]
[EventType "blitz"]
[EventCountry "RUS"]
[SourceTitle "playchess.com"]
[Source "ChessBase"]
[SourceQuality "1"]
[TimeControl "180+2"]

1. e4 {[%emt 0:00:00]} e5 {[%emt 0:00:00]} 2. Nf3 {[%emt 0:00:00]} Nc6 {
[%emt 0:00:11]} 3. Bb5 {[%emt 0:00:02]} a6 {[%emt 0:00:00]} 4. Ba4 {[%emt 0:00:
00]} Nf6 {[%emt 0:00:00]} 5. d4 {[%emt 0:00:00]} exd4 {[%emt 0:00:01]} 6. O-O {
[%emt 0:00:04]} Be7 {[%emt 0:00:00]} 7. e5 {[%emt 0:00:08]} Ne4 {[%emt 0:00:00]
} 8. Nxd4 {[%emt 0:00:11]} O-O {[%emt 0:00:08]} 9. Nf5 {[%emt 0:00:16]} d5 {
[%emt 0:00:04]} 10. exd6 {[%emt 0:00:24]} Bxf5 {[%emt 0:00:18]} 11. dxe7 {
[%emt 0:00:00]} Qxe7 {[%emt 0:00:00]} 12. Bxc6 {[%emt 0:00:12]} bxc6 {[%emt 0:
00:00]} 13. Qf3 {[%emt 0:00:08]} Bg6 {[%emt 0:00:13]} 14. Nc3 {[%emt 0:00:07]}
Rfe8 {[%emt 0:00:18]} 15. Bf4 {[%emt 0:00:09]} Qb4 {[%emt 0:00:07]} 16. Nxe4 {
[%emt 0:00:19]} Rxe4 {[%emt 0:00:03]} 17. Bxc7 {[%emt 0:00:05]} Qxb2 {[%emt 0:
00:00]} 18. Qb3 {[%emt 0:00:14]} Rb4 {[%emt 0:00:13]} 19. Qxb2 {[%emt 0:00:07]}
Rxb2 {[%emt 0:00:00]} 20. c3 {[%emt 0:00:00]} Re8 {[%emt 0:00:16]} 21. Rfe1 {
[%emt 0:00:00]} Rxe1+ {[%emt 0:00:15]} 22. Rxe1 {[%emt 0:00:00]} f6 {[%emt 0:
00:00]} 23. a4 {[%emt 0:00:06]} Ra2 {[%emt 0:00:12]} 24. a5 {[%emt 0:00:09]}
Rc2 {[%emt 0:00:00]} 25. h3 {[%emt 0:00:13]} Rxc3 {[%emt 0:00:01]} 26. Re7 {
[%emt 0:00:00]} Bd3 {[%emt 0:00:08]} 27. Bb6 {[%emt 0:00:04]} h6 {[%emt 0:00:
12]} 28. Rc7 {[%emt 0:00:03]} Bb5 {[%emt 0:00:04]} 29. Kh2 {[%emt 0:00:06]} h5
{[%emt 0:00:08]} 30. h4 {[%emt 0:00:00]} Rd3 {[%emt 0:00:00]} 31. Re7 {[%emt 0:
00:11]} Kh7 {[%emt 0:00:09]} 32. Rc7 {[%emt 0:00:11]} Kg6 {[%emt 0:00:07]} 33.
Re7 {[%emt 0:00:00]} Rc3 {[%emt 0:00:02]} 34. Rc7 {[%emt 0:00:00]} Rc4 {
[%emt 0:00:00]} 35. Kh3 {[%emt 0:00:10]} Rg4 {[%emt 0:00:06]} 36. f3 {[%emt 0:
00:08]} Rc4 {[%emt 0:00:00]} 37. Kh2 {[%emt 0:00:07]} Rc2 {[%emt 0:00:00]} 38.
Kg1 {[%emt 0:00:00]} Rc4 {[%emt 0:00:11]} 39. Bf2 {[%emt 0:00:00]} Rc1+ {
[%emt 0:00:02]} 40. Kh2 {[%emt 0:00:01]} Rc2 {[%emt 0:00:00]} 41. Kg1 {[%emt 0:
00:00]} Rc4 {[%emt 0:00:06]} 42. Kh2 {[%emt 0:00:10]} Ra4 {[%emt 0:00:00]} 43.
Be1 {[%emt 0:00:07]} Ra2 {[%emt 0:00:04]} 44. Kg1 {[%emt 0:00:04]} Ra1 {
[%emt 0:00:00]} 45. Kf2 {[%emt 0:00:02]} Rc1 {[%emt 0:00:03]} 46. Bb4 {[%emt 0:
00:02]} Rc2+ {[%emt 0:00:00]} 47. Kg1 {[%emt 0:00:01]} Rc4 {[%emt 0:00:15]} 48.
Bf8 {[%emt 0:00:01]} Rxh4 {[%emt 0:00:04]} 49. Rxg7+ {[%emt 0:00:00]} Kf5 {
[%emt 0:00:00]} 50. Rh7 {[%emt 0:00:03]} Ra4 {[%emt 0:00:08]} 51. Rxh5+ {
[%emt 0:00:06]} Kg6 {[%emt 0:00:04]} 52. Rh6+ {[%emt 0:00:01]} Kf7 {[%emt 0:00:
00]} 53. Bc5 {[%emt 0:00:04]} Rc4 {[%emt 0:00:06]} 1/2-1/2

[Event "RUS-ch Blitz 2021"]
[Site "Sochi"]
[Date "2021.10.11"]
[Round "6.16"]
[White "Radzhabov, Rodion"]
[Black "Popov, Valerij"]
[Result "0-1"]
[ECO "C03"]
[WhiteElo "2361"]
[BlackElo "2537"]
[Annotator "ChessBase"]
[PlyCount "52"]
[EventDate "2021.10.11"]
[EventType "blitz"]
[EventCountry "RUS"]
[SourceTitle "playchess.com"]
[Source "ChessBase"]
[SourceQuality "1"]
[TimeControl "180+2"]

1. e4 {[%emt 0:00:04]} e6 {[%emt 0:00:00]} 2. d4 {[%emt 0:00:06]} d5 {[%emt 0:
00:02]} 3. Nd2 {[%emt 0:00:00]} h6 {[%emt 0:00:00]} 4. Bd3 {[%emt 0:00:04]} Nc6
{[%emt 0:00:04]} 5. Ne2 {[%emt 0:00:05]} dxe4 {[%emt 0:00:34]} 6. Nxe4 {
[%emt 0:00:00]} Be7 {[%emt 0:00:00]} 7. c3 {[%emt 0:00:00]} Nf6 {[%emt 0:00:10]
} 8. Nxf6+ {[%emt 0:00:00]} Bxf6 {[%emt 0:00:00]} 9. Ng3 {[%emt 0:00:03]} e5 {
[%emt 0:00:16]} 10. O-O {[%emt 0:00:27]} exd4 {[%emt 0:00:04]} 11. Re1+ {
[%emt 0:00:00]} Be6 {[%emt 0:00:04]} 12. Qh5 {[%emt 0:00:38]} Qd7 {[%emt 0:00:
14]} 13. Ne4 {[%emt 0:00:41]} Be7 {[%emt 0:00:05]} 14. Bf4 {[%emt 0:00:27]}
dxc3 {[%emt 0:00:28]} 15. Rad1 {[%emt 0:00:00]} Bg4 {[%emt 0:00:18]} 16. Qb5 {
[%emt 0:00:21]} Bxd1 {[%emt 0:00:01]} 17. Nc5 {[%emt 0:00:07]} Qg4 {[%emt 0:00:
20]} 18. Qxb7 {[%emt 0:00:21]} O-O {[%emt 0:00:08]} 19. Qxc6 {[%emt 0:00:08]}
Qxf4 {[%emt 0:00:13]} 20. Rxd1 {[%emt 0:00:00]} Bxc5 {[%emt 0:00:06]} 21. Qxc5
{[%emt 0:00:10]} cxb2 {[%emt 0:00:00]} 22. Bb1 {[%emt 0:00:01]} Rfd8 {[%emt 0:
00:08]} 23. Re1 {[%emt 0:00:03]} Qd2 {[%emt 0:00:07]} 24. Rf1 {[%emt 0:00:02]}
Re8 {[%emt 0:00:15]} 25. Qf5 {[%emt 0:00:00]} g6 {[%emt 0:00:00]} 26. Qf6 {
[%emt 0:00:04]} Re1 {[%emt 0:00:00]} 0-1

[Event "RUS-ch Blitz 2021"]
[Site "Sochi"]
[Date "2021.10.11"]
[Round "6.17"]
[White "Zakhartsov, Vladimir"]
[Black "Pogosyan, Stefan"]
[Result "1-0"]
[ECO "C45"]
[WhiteElo "2514"]
[BlackElo "2407"]
[Annotator "ChessBase"]
[PlyCount "101"]
[EventDate "2021.10.11"]
[EventType "blitz"]
[EventCountry "RUS"]
[SourceTitle "playchess.com"]
[Source "ChessBase"]
[SourceQuality "1"]
[TimeControl "180+2"]

1. e4 {[%emt 0:00:00]} Nc6 {[%emt 0:00:10]} 2. Nf3 {[%emt 0:00:02]} e5 {
[%emt 0:00:00]} 3. d4 {[%emt 0:00:00]} exd4 {[%emt 0:00:03]} 4. Nxd4 {[%emt 0:
00:05]} Bc5 {[%emt 0:00:00]} 5. Nb3 {[%emt 0:00:00]} Bb6 {[%emt 0:00:00]} 6.
Nc3 {[%emt 0:00:00]} Nf6 {[%emt 0:00:00]} 7. Qe2 {[%emt 0:00:14]} O-O {[%emt 0:
00:00]} 8. Be3 {[%emt 0:00:03]} d5 {[%emt 0:00:41]} 9. O-O-O {[%emt 0:00:12]}
d4 {[%emt 0:00:00]} 10. Bg5 {[%emt 0:00:26]} Qd6 {[%emt 0:01:29]} 11. Bxf6 {
[%emt 0:00:37]} Qxf6 {[%emt 0:00:01]} 12. Nd5 {[%emt 0:00:04]} Qh6+ {[%emt 0:
00:09]} 13. Kb1 {[%emt 0:00:11]} Be6 {[%emt 0:00:00]} 14. f4 {[%emt 0:00:22]}
Rfe8 {[%emt 0:00:12]} 15. Qf3 {[%emt 0:00:14]} Bxd5 {[%emt 0:00:16]} 16. exd5 {
[%emt 0:00:00]} Nb4 {[%emt 0:00:08]} 17. Bc4 {[%emt 0:00:01]} Re3 {[%emt 0:00:
02]} 18. Qg4 {[%emt 0:00:00]} d3 {[%emt 0:00:24]} 19. c3 {[%emt 0:00:00]} Na6 {
[%emt 0:00:00]} 20. Bxd3 {[%emt 0:00:10]} Nc5 {[%emt 0:00:00]} 21. Nxc5 {
[%emt 0:00:04]} Bxc5 {[%emt 0:00:00]} 22. Bc2 {[%emt 0:00:09]} Qf6 {[%emt 0:00:
03]} 23. Rhe1 {[%emt 0:00:07]} g6 {[%emt 0:00:00]} 24. Rxe3 {[%emt 0:00:03]}
Bxe3 {[%emt 0:00:01]} 25. g3 {[%emt 0:00:00]} Rd8 {[%emt 0:00:07]} 26. Qe2 {
[%emt 0:00:10]} Bc5 {[%emt 0:00:00]} 27. h4 {[%emt 0:00:04]} h5 {[%emt 0:00:08]
} 28. f5 {[%emt 0:00:00]} Bd6 {[%emt 0:00:00]} 29. fxg6 {[%emt 0:00:04]} fxg6 {
[%emt 0:00:01]} 30. g4 {[%emt 0:00:00]} hxg4 {[%emt 0:00:04]} 31. Qxg4 {
[%emt 0:00:03]} Kg7 {[%emt 0:00:00]} 32. Rg1 {[%emt 0:00:04]} Bc5 {[%emt 0:00:
01]} 33. Qxg6+ {[%emt 0:00:13]} Qxg6 {[%emt 0:00:01]} 34. Rxg6+ {[%emt 0:00:00]
} Kf7 {[%emt 0:00:00]} 35. b4 {[%emt 0:00:10]} Be3 {[%emt 0:00:01]} 36. Rg3 {
[%emt 0:00:04]} Bd2 {[%emt 0:00:03]} 37. Bb3 {[%emt 0:00:01]} Kf6 {[%emt 0:00:
02]} 38. Kc2 {[%emt 0:00:02]} Bf4 {[%emt 0:00:05]} 39. Rf3 {[%emt 0:00:05]} Ke5
{[%emt 0:00:00]} 40. Rf1 {[%emt 0:00:01]} Rh8 {[%emt 0:00:02]} 41. Re1+ {
[%emt 0:00:04]} Kf5 {[%emt 0:00:00]} 42. Rh1 {[%emt 0:00:02]} Kg4 {[%emt 0:00:
02]} 43. Rg1+ {[%emt 0:00:04]} Bg3 {[%emt 0:00:02]} 44. c4 {[%emt 0:00:04]}
Rxh4 {[%emt 0:00:00]} 45. c5 {[%emt 0:00:01]} Rh2+ {[%emt 0:00:03]} 46. Kd3 {
[%emt 0:00:00]} Kf4 {[%emt 0:00:04]} 47. Kc4 {[%emt 0:00:05]} Rh4 {[%emt 0:00:
05]} 48. Kb5 {[%emt 0:00:05]} Bf2 {[%emt 0:00:00]} 49. Rg7 {[%emt 0:00:00]} a6+
{[%emt 0:00:06]} 50. Ka4 {[%emt 0:00:03]} b5+ {[%emt 0:00:03]} 51. Ka5 {
[%emt 0:00:00]} 1-0

[Event "RUS-ch Blitz 2021"]
[Site "Sochi"]
[Date "2021.10.11"]
[Round "6.18"]
[White "Demidov, Mikhail"]
[Black "Smagin, Sergey"]
[Result "1-0"]
[ECO "E04"]
[WhiteElo "2551"]
[BlackElo "2551"]
[Annotator "ChessBase"]
[PlyCount "50"]
[EventDate "2021.10.11"]
[EventType "blitz"]
[EventCountry "RUS"]
[SourceTitle "playchess.com"]
[Source "ChessBase"]
[SourceQuality "1"]
[TimeControl "180+2"]

1. Nf3 {[%emt 0:00:04]} d5 {[%emt 0:00:00]} 2. g3 {[%emt 0:00:00]} c5 {[%emt 0:
00:11]} 3. Bg2 {[%emt 0:00:00]} Nc6 {[%emt 0:00:00]} 4. d4 {[%emt 0:00:12]} e6
{[%emt 0:00:00]} 5. O-O {[%emt 0:00:00]} Nf6 {[%emt 0:00:00]} 6. c4 {[%emt 0:
00:00]} dxc4 {[%emt 0:00:00]} 7. Qa4 {[%emt 0:00:25]} Bd7 {[%emt 0:00:00]} 8.
dxc5 {[%emt 0:00:08]} Na5 {[%emt 0:00:00]} 9. Qa3 {[%emt 0:00:12]} b6 {[%emt 0:
00:00]} 10. b4 {[%emt 0:00:08]} cxb3 {[%emt 0:00:26]} 11. axb3 {[%emt 0:00:00]}
Bxc5 {[%emt 0:00:00]} 12. b4 {[%emt 0:00:02]} Be7 {[%emt 0:00:01]} 13. Ne5 {
[%emt 0:00:16]} Rc8 {[%emt 0:00:14]} 14. Rd1 {[%emt 0:00:08]} Nc4 {[%emt 0:00:
19]} 15. Nxc4 {[%emt 0:00:34]} Rxc4 {[%emt 0:00:00]} 16. Qxa7 {[%emt 0:00:00]}
O-O {[%emt 0:00:13]} 17. Bb2 {[%emt 0:00:35]} Qc8 {[%emt 0:00:56]} 18. Nd2 {
[%emt 0:00:24]} Rxb4 {[%emt 0:00:16]} 19. Rac1 {[%emt 0:00:07]} Qe8 {[%emt 0:
00:47]} 20. Bxf6 {[%emt 0:00:08]} Bxf6 {[%emt 0:00:10]} 21. Ne4 {[%emt 0:00:00]
} Ba4 {[%emt 0:00:04]} 22. Nxf6+ {[%emt 0:00:09]} gxf6 {[%emt 0:00:00]} 23. Rd2
{[%emt 0:00:05]} Kg7 {[%emt 0:00:09]} 24. h3 {[%emt 0:00:00]} Qb8 {[%emt 0:00:
02]} 25. Qa6 {[%emt 0:00:00]} Qd8 {[%emt 0:00:02]} 1-0

[Event "RUS-ch Blitz 2021"]
[Site "Sochi"]
[Date "2021.10.11"]
[Round "6.19"]
[White "Nazaretyan, Tigran"]
[Black "Nozdrachev, Vladislav"]
[Result "1-0"]
[ECO "E14"]
[WhiteElo "2316"]
[BlackElo "2495"]
[Annotator "ChessBase"]
[PlyCount "87"]
[EventDate "2021.10.11"]
[EventType "blitz"]
[EventCountry "RUS"]
[SourceTitle "playchess.com"]
[Source "ChessBase"]
[SourceQuality "1"]
[TimeControl "180+2"]

1. d4 {[%emt 0:00:04]} Nf6 {[%emt 0:00:00]} 2. c4 {[%emt 0:00:09]} e6 {[%emt 0:
00:00]} 3. Nf3 {[%emt 0:00:00]} c5 {[%emt 0:00:00]} 4. e3 {[%emt 0:00:00]} b6 {
[%emt 0:00:19]} 5. Nc3 {[%emt 0:00:02]} Bb7 {[%emt 0:00:00]} 6. d5 {[%emt 0:00:
00]} g6 {[%emt 0:00:02]} 7. e4 {[%emt 0:00:02]} exd5 {[%emt 0:00:37]} 8. cxd5 {
[%emt 0:00:00]} d6 {[%emt 0:00:02]} 9. Bd3 {[%emt 0:00:11]} Bg7 {[%emt 0:00:03]
} 10. O-O {[%emt 0:00:05]} O-O {[%emt 0:00:00]} 11. h3 {[%emt 0:00:00]} a6 {
[%emt 0:00:07]} 12. a4 {[%emt 0:00:00]} Qc7 {[%emt 0:00:03]} 13. Bf4 {[%emt 0:
00:06]} Nbd7 {[%emt 0:00:05]} 14. Re1 {[%emt 0:00:00]} Rfe8 {[%emt 0:00:01]}
15. Bc4 {[%emt 0:00:00]} h6 {[%emt 0:00:49]} 16. Qd2 {[%emt 0:00:17]} g5 {
[%emt 0:00:02]} 17. Bh2 {[%emt 0:00:08]} Nh7 {[%emt 0:00:08]} 18. Re2 {[%emt 0:
00:13]} Nhf8 {[%emt 0:00:00]} 19. Rae1 {[%emt 0:00:04]} Ng6 {[%emt 0:00:00]}
20. Bg3 {[%emt 0:00:11]} Nde5 {[%emt 0:00:06]} 21. Nxe5 {[%emt 0:00:12]} Nxe5 {
[%emt 0:00:00]} 22. b3 {[%emt 0:00:02]} Ng6 {[%emt 0:00:08]} 23. Nd1 {[%emt 0:
00:09]} Qd7 {[%emt 0:00:00]} 24. Nc3 {[%emt 0:00:11]} Rab8 {[%emt 0:00:08]} 25.
Qd3 {[%emt 0:00:03]} Ne5 {[%emt 0:00:00]} 26. Qd2 {[%emt 0:00:00]} Bc8 {
[%emt 0:00:05]} 27. f4 {[%emt 0:00:06]} gxf4 {[%emt 0:00:00]} 28. Bxf4 {
[%emt 0:00:00]} b5 {[%emt 0:00:04]} 29. axb5 {[%emt 0:00:18]} axb5 {[%emt 0:00:
01]} 30. Bd3 {[%emt 0:00:08]} c4 {[%emt 0:00:11]} 31. bxc4 {[%emt 0:00:06]}
bxc4 {[%emt 0:00:00]} 32. Bc2 {[%emt 0:00:03]} Qa7+ {[%emt 0:00:16]} 33. Kh1 {
[%emt 0:00:04]} Kh7 {[%emt 0:00:04]} 34. Rf1 {[%emt 0:00:11]} Rb2 {[%emt 0:00:
03]} 35. Qc1 {[%emt 0:00:07]} Qb7 {[%emt 0:00:04]} 36. Ref2 {[%emt 0:00:11]}
Nd3 {[%emt 0:00:11]} 37. Bxd3 {[%emt 0:00:09]} Rxf2 {[%emt 0:00:03]} 38. Rxf2 {
[%emt 0:00:07]} cxd3 {[%emt 0:00:00]} 39. Bxd6 {[%emt 0:00:03]} Qb3 {[%emt 0:
00:14]} 40. Rxf7 {[%emt 0:00:06]} Kg8 {[%emt 0:00:00]} 41. Rc7 {[%emt 0:00:10]}
Qc2 {[%emt 0:00:06]} 42. Qe3 {[%emt 0:00:05]} Bxc3 {[%emt 0:00:11]} 43. Qxh6 {
[%emt 0:00:07]} Qd1+ {[%emt 0:00:13]} 44. Kh2 {[%emt 0:00:05]} 1-0

[Event "RUS-ch Blitz 2021"]
[Site "Sochi"]
[Date "2021.10.11"]
[Round "6.20"]
[White "Murzin, Volodar"]
[Black "Babanin, Gleb"]
[Result "1-0"]
[ECO "B52"]
[WhiteElo "2513"]
[BlackElo "2094"]
[Annotator "ChessBase"]
[PlyCount "61"]
[EventDate "2021.10.11"]
[EventType "blitz"]
[EventCountry "RUS"]
[SourceTitle "playchess.com"]
[Source "ChessBase"]
[SourceQuality "1"]
[TimeControl "180+2"]

1. e4 {[%emt 0:00:00]} c5 {[%emt 0:00:04]} 2. Nf3 {[%emt 0:00:03]} d6 {[%emt 0:
00:00]} 3. Bb5+ {[%emt 0:00:00]} Bd7 {[%emt 0:00:06]} 4. Bxd7+ {[%emt 0:00:03]}
Qxd7 {[%emt 0:00:00]} 5. O-O {[%emt 0:00:00]} Nc6 {[%emt 0:00:01]} 6. c3 {
[%emt 0:00:00]} d5 {[%emt 0:00:00]} 7. e5 {[%emt 0:00:51]} e6 {[%emt 0:00:00]}
8. d3 {[%emt 0:00:00]} Nge7 {[%emt 0:00:00]} 9. Re1 {[%emt 0:00:00]} Nf5 {
[%emt 0:00:24]} 10. Nbd2 {[%emt 0:00:00]} Be7 {[%emt 0:00:00]} 11. Nf1 {
[%emt 0:00:00]} d4 {[%emt 0:00:13]} 12. c4 {[%emt 0:00:00]} h6 {[%emt 0:00:17]}
13. Ng3 {[%emt 0:00:25]} Nxg3 {[%emt 0:00:00]} 14. hxg3 {[%emt 0:00:00]} a6 {
[%emt 0:01:08]} 15. a4 {[%emt 0:00:00]} Bd8 {[%emt 0:00:00]} 16. Re4 {[%emt 0:
00:00]} Bc7 {[%emt 0:00:00]} 17. Qe2 {[%emt 0:00:00]} Rb8 {[%emt 0:00:00]} 18.
Rg4 {[%emt 0:00:55]} g6 {[%emt 0:00:00]} 19. Rh4 {[%emt 0:01:21]} h5 {[%emt 0:
00:00]} 20. g4 {[%emt 0:00:00]} b5 {[%emt 0:00:00]} 21. axb5 {[%emt 0:00:00]}
axb5 {[%emt 0:00:00]} 22. cxb5 {[%emt 0:00:00]} Rxb5 {[%emt 0:00:00]} 23. Bg5 {
[%emt 0:00:00]} Bd8 {[%emt 0:00:00]} 24. gxh5 {[%emt 0:00:00]} Rxh5 {[%emt 0:
00:00]} 25. Rxh5 {[%emt 0:00:00]} gxh5 {[%emt 0:00:00]} 26. Bxd8 {[%emt 0:00:
00]} Qxd8 {[%emt 0:00:00]} 27. Qe4 {[%emt 0:00:00]} Qd5 {[%emt 0:00:00]} 28.
Qh7 {[%emt 0:00:00]} Rxb2 {[%emt 0:00:00]} 29. Ra8+ {[%emt 0:00:00]} Kd7 {
[%emt 0:00:00]} 30. Qxf7+ {[%emt 0:00:00]} Ne7 {[%emt 0:00:00]} 31. Qe8+ {
[%emt 0:00:24]} 1-0

[Event "RUS-ch Blitz 2021"]
[Site "Sochi"]
[Date "2021.10.11"]
[Round "6.21"]
[White "Indzhiev, Aldar"]
[Black "Moiseenko, Vadim"]
[Result "0-1"]
[ECO "C41"]
[WhiteElo "2101"]
[BlackElo "2542"]
[Annotator "ChessBase"]
[PlyCount "60"]
[EventDate "2021.10.11"]
[EventType "blitz"]
[EventCountry "RUS"]
[SourceTitle "playchess.com"]
[Source "ChessBase"]
[SourceQuality "1"]
[TimeControl "180+2"]

1. d4 {[%emt 0:00:00]} d6 {[%emt 0:00:04]} 2. e4 {[%emt 0:00:02]} Nf6 {[%emt 0:
00:00]} 3. Nc3 {[%emt 0:00:00]} e5 {[%emt 0:00:06]} 4. Nf3 {[%emt 0:00:01]}
Nbd7 {[%emt 0:00:00]} 5. Bc4 {[%emt 0:00:00]} Be7 {[%emt 0:00:02]} 6. O-O {
[%emt 0:00:10]} c6 {[%emt 0:00:00]} 7. Re1 {[%emt 0:00:16]} h6 {[%emt 0:00:02]}
8. Bf1 {[%emt 0:00:07]} Qc7 {[%emt 0:00:13]} 9. a4 {[%emt 0:00:00]} a5 {
[%emt 0:00:00]} 10. h3 {[%emt 0:00:05]} Nf8 {[%emt 0:00:05]} 11. Be3 {[%emt 0:
00:10]} g5 {[%emt 0:00:15]} 12. Nh2 {[%emt 0:00:20]} Ng6 {[%emt 0:00:02]} 13.
dxe5 {[%emt 0:00:16]} dxe5 {[%emt 0:00:07]} 14. Bc4 {[%emt 0:00:05]} Nf4 {
[%emt 0:00:15]} 15. Bxf4 {[%emt 0:00:17]} gxf4 {[%emt 0:00:03]} 16. Kh1 {
[%emt 0:00:07]} Bc5 {[%emt 0:00:04]} 17. Qf3 {[%emt 0:00:05]} h5 {[%emt 0:00:
06]} 18. Bb3 {[%emt 0:00:31]} Bg4 {[%emt 0:00:12]} 19. Qd3 {[%emt 0:00:22]}
Bxf2 {[%emt 0:00:05]} 20. Rf1 {[%emt 0:00:12]} Rd8 {[%emt 0:00:09]} 21. Qc4 {
[%emt 0:00:07]} Bb6 {[%emt 0:00:07]} 22. Nf3 {[%emt 0:00:18]} Rg8 {[%emt 0:00:
22]} 23. Nxe5 {[%emt 0:00:06]} Be6 {[%emt 0:00:00]} 24. Qe2 {[%emt 0:00:09]}
Qxe5 {[%emt 0:00:06]} 25. Rad1 {[%emt 0:00:00]} Ke7 {[%emt 0:00:37]} 26. Bxe6 {
[%emt 0:00:01]} fxe6 {[%emt 0:00:00]} 27. Qf3 {[%emt 0:00:00]} Rxd1 {[%emt 0:
00:00]} 28. Rxd1 {[%emt 0:00:00]} Rg3 {[%emt 0:00:00]} 29. Qf1 {[%emt 0:00:00]}
f3 {[%emt 0:00:00]} 30. gxf3 {[%emt 0:00:05]} Rg1+ {[%emt 0:00:00]} 0-1

[Event "RUS-ch Blitz 2021"]
[Site "Sochi"]
[Date "2021.10.11"]
[Round "6.22"]
[White "Potapov, Pavel"]
[Black "Averin, Nikolay"]
[Result "0-1"]
[ECO "B04"]
[WhiteElo "2481"]
[BlackElo "2129"]
[Annotator "ChessBase"]
[PlyCount "136"]
[EventDate "2021.10.11"]
[EventType "blitz"]
[EventCountry "RUS"]
[SourceTitle "playchess.com"]
[Source "ChessBase"]
[SourceQuality "1"]
[TimeControl "180+2"]

1. e4 {[%emt 0:00:02]} Nf6 {[%emt 0:00:02]} 2. e5 {[%emt 0:00:00]} Nd5 {
[%emt 0:00:00]} 3. Nf3 {[%emt 0:00:08]} d6 {[%emt 0:00:01]} 4. d4 {[%emt 0:00:
00]} g6 {[%emt 0:00:00]} 5. c4 {[%emt 0:00:00]} Nb6 {[%emt 0:00:04]} 6. Nc3 {
[%emt 0:00:01]} Bg7 {[%emt 0:00:00]} 7. exd6 {[%emt 0:00:05]} cxd6 {[%emt 0:00:
00]} 8. Be3 {[%emt 0:00:00]} O-O {[%emt 0:00:03]} 9. Be2 {[%emt 0:00:01]} Bg4 {
[%emt 0:00:01]} 10. O-O {[%emt 0:00:09]} Nc6 {[%emt 0:00:02]} 11. b3 {[%emt 0:
00:06]} d5 {[%emt 0:00:00]} 12. c5 {[%emt 0:00:08]} Nc8 {[%emt 0:00:00]} 13. h3
{[%emt 0:00:12]} Bxf3 {[%emt 0:00:04]} 14. Bxf3 {[%emt 0:00:01]} e6 {[%emt 0:
00:00]} 15. Rb1 {[%emt 0:00:15]} N8e7 {[%emt 0:00:04]} 16. Ne2 {[%emt 0:00:40]}
Nf5 {[%emt 0:00:04]} 17. Qd2 {[%emt 0:00:09]} Nh4 {[%emt 0:00:24]} 18. Bg4 {
[%emt 0:00:16]} h5 {[%emt 0:00:00]} 19. Bg5 {[%emt 0:00:03]} Bf6 {[%emt 0:00:
07]} 20. Bxh4 {[%emt 0:00:01]} Bxh4 {[%emt 0:00:00]} 21. Bf3 {[%emt 0:00:06]}
b5 {[%emt 0:01:00]} 22. b4 {[%emt 0:00:15]} Bf6 {[%emt 0:00:23]} 23. Rfd1 {
[%emt 0:00:05]} a5 {[%emt 0:00:22]} 24. bxa5 {[%emt 0:00:12]} Rxa5 {[%emt 0:00:
15]} 25. Qb2 {[%emt 0:00:11]} Qa8 {[%emt 0:00:05]} 26. Rd2 {[%emt 0:00:15]} b4
{[%emt 0:00:00]} 27. Nc1 {[%emt 0:00:02]} Rxc5 {[%emt 0:00:06]} 28. Nb3 {
[%emt 0:00:06]} Rc3 {[%emt 0:00:05]} 29. Rc1 {[%emt 0:00:03]} Rxc1+ {[%emt 0:
00:08]} 30. Qxc1 {[%emt 0:00:00]} Rc8 {[%emt 0:00:02]} 31. Rc2 {[%emt 0:00:05]}
Na7 {[%emt 0:00:13]} 32. Rc5 {[%emt 0:00:09]} Qb8 {[%emt 0:00:14]} 33. g3 {
[%emt 0:00:07]} Kg7 {[%emt 0:00:07]} 34. Kg2 {[%emt 0:00:00]} Rxc5 {[%emt 0:00:
04]} 35. Qxc5 {[%emt 0:00:00]} Bd8 {[%emt 0:00:05]} 36. Be2 {[%emt 0:00:02]}
Qb6 {[%emt 0:00:03]} 37. Qc2 {[%emt 0:00:11]} Nc6 {[%emt 0:00:01]} 38. Qc5 {
[%emt 0:00:06]} Qxc5 {[%emt 0:00:04]} 39. dxc5 {[%emt 0:00:03]} Na7 {[%emt 0:
00:05]} 40. f4 {[%emt 0:00:00]} h4 {[%emt 0:00:00]} 41. g4 {[%emt 0:00:02]} Bc7
{[%emt 0:00:00]} 42. Kf3 {[%emt 0:00:00]} f6 {[%emt 0:00:03]} 43. Nd4 {[%emt 0:
00:04]} Kf7 {[%emt 0:00:00]} 44. Nc2 {[%emt 0:00:02]} Nc6 {[%emt 0:00:06]} 45.
Bb5 {[%emt 0:00:00]} Na7 {[%emt 0:00:02]} 46. Ba4 {[%emt 0:00:03]} Ba5 {
[%emt 0:00:00]} 47. f5 {[%emt 0:00:02]} gxf5 {[%emt 0:00:01]} 48. gxf5 {
[%emt 0:00:00]} e5 {[%emt 0:00:00]} 49. Kg4 {[%emt 0:00:01]} d4 {[%emt 0:00:02]
} 50. Kf3 {[%emt 0:00:03]} Ke7 {[%emt 0:00:02]} 51. Ke4 {[%emt 0:00:01]} Nc8 {
[%emt 0:00:03]} 52. Bb3 {[%emt 0:00:02]} Kd8 {[%emt 0:00:00]} 53. Ne1 {[%emt 0:
00:01]} Ne7 {[%emt 0:00:02]} 54. Nf3 {[%emt 0:00:01]} Kc7 {[%emt 0:00:01]} 55.
Nxh4 {[%emt 0:00:01]} Kc6 {[%emt 0:00:03]} 56. Ng6 {[%emt 0:00:01]} Nc8 {
[%emt 0:00:03]} 57. h4 {[%emt 0:00:01]} Kxc5 {[%emt 0:00:03]} 58. Be6 {[%emt 0:
00:03]} Nd6+ {[%emt 0:00:03]} 59. Kf3 {[%emt 0:00:02]} e4+ {[%emt 0:00:02]} 60.
Kf4 {[%emt 0:00:04]} d3 {[%emt 0:00:02]} 61. Ke3 {[%emt 0:00:00]} Bb6 {[%emt 0:
00:02]} 62. h5 {[%emt 0:00:01]} Kb5+ {[%emt 0:00:03]} 63. Kd2 {[%emt 0:00:02]}
Nc4+ {[%emt 0:00:01]} 64. Kd1 {[%emt 0:00:07]} e3 {[%emt 0:00:04]} 65. h6 {
[%emt 0:00:01]} Nb2+ {[%emt 0:00:00]} 66. Kc1 {[%emt 0:00:01]} d2+ {[%emt 0:00:
01]} 67. Kxb2 {[%emt 0:00:00]} d1=Q {[%emt 0:00:02]} 68. h7 {[%emt 0:00:02]}
Bd4# {[%emt 0:00:00]} 0-1